bitfinex/quotes_ETHUSD_20250611
["timestamp","ask_amount","ask_price","bid_price","bid_amount"]
[1749651677719,28.95801738,2824.8,2824.7,4.0]
[1749651677871,28.95801738,2824.8,2824.7,17.54019895]
[1749651678223,28.95801738,2824.8,2824.7,10.0]
[1749651678398,28.95801738,2824.8,2824.7,4.0]
[1749651678767,28.95801738,2824.8,2824.7,7.54019895]
[1749651678984,28.95801738,2824.8,2824.7,4.0]
[1749651679371,28.95801738,2824.8,2824.1,10.0]
[1749651679372,28.95801738,2824.8,2824.4,0.1768]
[1749651679573,0.1768,2824.7,2824.4,4.003]
[1749651679905,28.95801738,2824.8,2824.4,4.003]
[1749651680210,28.95801738,2824.8,2824.4,7.72036551]
[1749651680506,28.95801738,2824.8,2824.6,3.54022336]
[1749651680706,28.95801738,2824.8,2824.7,0.1768]
[1749651680911,28.95801738,2824.8,2824.7,14.47009895]
[1749651681424,28.95801738,2824.8,2824.7,26.81738195]
[1749651681587,28.95801738,2824.8,2824.7,34.7715483]
[1749651682309,24.32901738,2824.8,2824.7,34.7715483]
[1749651682507,11.0088965,2824.8,2824.7,34.7715483]
[1749651682684,11.0088965,2824.8,2824.7,14.47009895]
[1749651683004,11.0088965,2824.8,2824.7,19.62009895]
[1749651683170,10.1926065,2824.8,2824.7,46.76479895]
[1749651683369,10.1926065,2824.8,2824.7,23.53038095]
[1749651683593,10.1926065,2824.8,2824.7,16.0809]
[1749651683779,10.1926065,2824.8,2824.7,19.62109895]
[1749651684166,10.1926065,2824.8,2824.7,19.97559895]
[1749651684372,10.1926065,2824.8,2824.7,19.62109895]
[1749651684810,10.1926065,2824.8,2824.7,16.0819]
[1749651685303,10.1926065,2824.8,2824.7,19.62209895]
[1749651685671,10.1926065,2824.8,2824.7,10.1768]
[1749651686098,10.1926065,2824.8,2824.7,14.1808]
[1749651686293,10.1926065,2824.8,2824.7,10.1768]
[1749651686503,10.1926065,2824.8,2824.7,14.003]
[1749651686678,10.1926065,2824.8,2824.7,17.54319895]
[1749651686879,10.1926065,2824.8,2824.7,14.003]
[1749651687092,10.1926065,2824.8,2824.7,10.0]
[1749651687271,10.1926065,2824.8,2824.6,4.003]
[1749651687695,10.1926065,2824.8,2824.7,4.003]
[1749651687886,10.1926065,2824.8,2824.7,0.1768]
[1749651688209,10.1926065,2824.8,2824.7,7.72399895]
[1749651688414,10.1926065,2824.8,2824.7,4.1838]
[1749651688708,10.1926065,2824.8,2824.5,1.5]
[1749651688909,10.1926065,2824.8,2824.5,5.507]
[1749651689319,10.1926065,2824.8,2824.5,9.04742626]
[1749651689623,10.1926065,2824.8,2824.7,28.19260195]
[1749651689929,10.1926065,2824.8,2824.7,22.06757457]
[1749651690080,10.1926065,2824.8,2824.7,20.40457457]
[1749651690270,8.02581598,2824.8,2824.7,20.40457457]
[1749651690490,0.04,2825.9,2825.8,13.53882086]
[1749651690691,0.04,2825.9,2825.8,19.46472086]
[1749651691316,0.7622,2827.5,2825.9,10.7709]
[1749651691543,0.14336581,2827.8,2825.9,0.7709]
[1749651691544,0.8197,2826.8,2825.9,0.7709]
[1749651691724,4.023,2826.8,2825.1,3.53960606]
[1749651692029,0.55,2826.1,2825.0,4.025]
[1749651692189,0.55,2826.1,2824.7,0.8195]
[1749651692190,0.55,2825.9,2824.7,0.8195]
[1749651692390,0.8197,2825.8,2824.6,1.145]
[1749651692593,0.8197,2825.8,2824.7,4.025]
[1749651692914,0.8197,2825.8,2824.5,10.665]
[1749651692915,0.55,2825.8,2824.5,11.02128067]
[1749651693125,0.7902,2825.7,2824.6,10.0]
[1749651693309,0.7902,2825.7,2824.8,10.0]
[1749651693499,0.55,2825.6,2824.8,10.0]
[1749651693700,0.8112,2825.5,2824.6,10.0]
[1749651694233,0.8112,2825.5,2824.7,4.031]
[1749651694428,0.8112,2825.5,2824.7,4.03283283]
[1749651694609,0.55,2825.4,2824.7,4.03283283]
[1749651695635,0.55,2825.4,2824.7,0.00183283]
[1749651695836,0.55,2825.4,2824.6,4.024]
[1749651696040,0.8112,2825.5,2824.7,10.799]
[1749651696222,0.8112,2825.5,2824.9,10.0]
[1749651696397,0.8112,2825.5,2825.1,10.0]
[1749651696600,0.8112,2825.5,2824.5,11.02400226]
[1749651696802,0.55,2825.4,2824.6,10.0]
[1749651697102,0.8112,2825.5,2824.7,4.027]
[1749651697734,0.55,2825.4,2824.7,4.027]
[1749651698598,0.8112,2825.5,2824.7,4.027]
[1749651700541,0.1768,2825.1,2824.8,4.017]
[1749651700747,0.8112,2825.5,2824.9,3.53985706]
[1749651700930,0.1768,2825.3,2824.9,3.53994831]
[1749651701130,0.1768,2825.3,2824.8,3.71684416]
[1749651701338,0.1768,2825.3,2824.8,0.1768]
[1749651701686,0.1768,2825.3,2824.9,4.014]
[1749651701802,0.8112,2825.5,2825.0,10.0]
[1749651702001,0.1768,2825.7,2825.1,0.1768]
[1749651702226,0.9729,2825.9,2825.4,3.71605782]
[1749651702402,0.9729,2825.9,2825.5,4.013]
[1749651703045,15.42586635,2825.7,2823.6,7.11140636]
[1749651703216,3.735,2825.3,2822.1,4.86567712]
[1749651703418,3.735,2825.3,2823.3,0.29567619]
[1749651703419,0.55,2824.0,2823.3,0.29567619]
[1749651703621,0.55,2824.4,2823.3,0.29567619]
[1749651703831,0.55,2824.2,2823.3,0.29567619]
[1749651704345,0.7573,2824.1,2823.3,0.29567619]
[1749651704503,0.55,2824.0,2823.3,0.29567619]
[1749651704701,0.55,2823.8,2823.3,0.29567619]
[1749651705301,0.55,2823.8,2822.7,4.131]
[1749651706868,0.55,2823.6,2822.3,4.30554995]
[1749651707077,0.55,2823.4,2822.4,10.0]
[1749651707545,0.55,2823.4,2822.3,4.30554995]
[1749651708674,0.55,2823.4,2822.3,14.29754995]
[1749651708875,0.55,2823.4,2822.3,10.18454995]
[1749651709080,0.55,2823.2,2822.3,0.18454995]
[1749651709275,0.55,2823.0,2822.3,0.18454995]
[1749651709566,0.55,2822.6,2822.1,0.04]
[1749651709869,0.55,2822.2,2822.1,0.04]
[1749651710069,0.8105,2822.3,2822.1,0.04]
[1749651710582,0.7913,2822.7,2822.1,0.04]
[1749651713258,0.1768,2822.3,2822.1,0.04]
[1749651713464,0.7913,2822.7,2822.1,0.04]
[1749651713663,0.87454664,2822.7,2822.1,0.04]
[1749651713857,0.1768,2822.4,2822.1,0.04]
[1749651714723,0.7528,2822.3,2822.1,0.04]
[1749651715552,0.1768,2822.3,2822.1,0.04]
[1749651716958,0.7996,2822.7,2822.1,0.04]
[1749651718752,0.8038,2823.2,2822.1,0.04]
[1749651718949,0.8038,2823.2,2822.1,0.853]
[1749651719251,0.8038,2823.2,2822.1,10.853]
[1749651719558,0.8038,2823.2,2822.2,1.43965126]
[1749651719863,0.8038,2823.2,2822.3,4.11]
[1749651720036,0.8038,2823.2,2822.5,3.54295837]
[1749651720240,0.8038,2823.2,2822.4,11.247]
[1749651720852,0.8038,2823.2,2822.4,14.79002568]
[1749651721163,0.8038,2823.6,2822.6,3.54283284]
[1749651721380,0.8038,2823.6,2822.6,5.37599643]
[1749651721704,0.8038,2823.6,2822.6,1.83327181]
[1749651721705,0.55,2823.5,2822.6,1.83327181]
[1749651721902,0.8038,2823.6,2822.7,3.54267834]
[1749651722058,0.8038,2823.6,2822.7,0.813]
[1749651722259,7.95416635,2824.6,2823.1,3.54217747]
[1749651722597,0.8038,2824.5,2823.0,10.0]
[1749651722779,0.8038,2824.5,2823.2,10.813]
[1749651722983,0.8038,2824.5,2823.4,10.0]
[1749651723170,0.8038,2824.5,2823.2,11.8943]
[1749651723371,0.8038,2824.5,2823.5,4.106]
[1749651723795,0.8038,2824.5,2823.5,7.64767383]
[1749651723971,7.1744534,2825.6,2823.9,4.35412251]
[1749651723972,0.8038,2824.8,2823.9,4.35412251]
[1749651724292,0.8038,2824.8,2824.0,1.247]
[1749651725701,0.8038,2824.8,2824.0,4.7879983]
[1749651725901,0.8171,2825.2,2824.1,10.0]
[1749651726072,0.8171,2825.2,2824.3,3.54070035]
[1749651726279,0.8171,2825.5,2824.2,0.753]
[1749651726812,0.8171,2825.5,2824.4,13.54049019]
[1749651726977,0.8171,2825.5,2824.5,1.8389217]
[1749651727179,0.1768,2825.2,2824.7,0.1768]
[1749651727377,0.1768,2825.2,2824.7,3.71692804]
[1749651727674,0.1768,2825.2,2824.8,3.54007363]
[1749651728081,0.1768,2825.2,2824.7,10.1768]
[1749651728082,0.1768,2825.2,2824.7,13.71697302]
[1749651728281,0.1768,2825.2,2824.7,14.79827302]
[1749651728476,0.1768,2825.2,2824.7,14.79823207]
[1749651728802,0.1768,2825.2,2824.7,4.79823207]
[1749651729116,0.8171,2825.5,2824.3,10.0]
[1749651729274,0.1768,2824.8,2824.4,1.247]
[1749651729475,0.8171,2825.5,2824.8,13.54007363]
[1749651729778,0.1768,2825.3,2824.8,13.71687363]
[1749651729983,0.1768,2825.3,2824.8,10.1768]
[1749651730379,0.8171,2825.5,2824.8,10.0]
[1749651730709,0.1768,2825.2,2824.8,10.0]
[1749651731025,0.1768,2825.2,2824.8,17.63607363]
[1749651731182,0.1768,2825.2,2824.8,14.096]
[1749651731603,0.1768,2825.2,2824.8,17.63607363]
[1749651731900,0.8171,2825.5,2824.8,19.77137991]
[1749651732211,0.1768,2825.4,2824.8,20.77127991]
[1749651732412,0.1768,2825.4,2824.8,22.00727991]
[1749651732784,0.1768,2825.4,2824.8,10.1768]
[1749651732998,0.1768,2825.2,2824.8,11.246]
[1749651733677,0.1768,2825.0,2824.6,11.221]
[1749651733880,0.8068,2825.0,2824.1,0.826]
[1749651734087,0.1768,2824.5,2824.2,1.221]
[1749651734309,0.1768,2824.5,2824.2,5.3]
[1749651734509,0.1768,2824.5,2824.2,8.84080797]
[1749651734813,0.1768,2824.5,2824.3,3.54068525]
[1749651735196,0.1768,2824.5,2824.4,3.54057498]
[1749651735395,0.1768,2824.5,2824.2,1.33847204]
[1749651735396,0.1768,2824.7,2824.2,1.51527204]
[1749651735602,0.1768,2824.7,2824.3,3.54070035]
[1749651735771,0.1768,2824.7,2824.3,5.52242435]
[1749651735975,0.1768,2824.7,2824.2,1.51527204]
[1749651736212,0.2168,2824.9,2824.4,10.1768]
[1749651736399,0.2168,2824.9,2824.6,3.54025864]
[1749651736572,0.2168,2824.9,2824.4,13.71730723]
[1749651736573,0.2168,2824.9,2824.7,3.54013802]
[1749651736770,0.04,2824.9,2824.7,3.54018166]
[1749651737116,0.04,2824.9,2824.6,3.71705996]
[1749651737617,0.04,2824.9,2824.6,3.71710446]
[1749651737919,0.04,2824.9,2824.6,0.1768]
[1749651738099,0.04,2824.9,2824.6,4.81566644]
[1749651738302,0.04,2824.9,2824.6,8.88266644]
[1749651738616,0.04,2824.9,2824.6,8.88264308]
[1749651738814,0.04,2824.9,2824.7,3.54019048]
[1749651738990,0.04,2824.9,2824.6,8.88269788]
[1749651739193,0.04,2824.9,2824.6,5.3424]
[1749651739406,0.04,2824.9,2824.7,4.50932355]
[1749651739587,0.04,2824.9,2824.8,3.54007363]
[1749651740593,0.04,2824.9,2824.7,14.50937336]
[1749651741005,0.04,2824.9,2824.8,3.54007363]
[1749651742595,0.04,2824.9,2824.8,13.54007363]
[1749651742916,0.04,2824.9,2824.8,14.11984686]
[1749651744427,0.04,2824.9,2824.8,33.92648686]
[1749651744630,0.04,2824.9,2824.8,36.79927007]
[1749651745138,0.04,2825.9,2824.9,10.0]
[1749651745301,0.04,2825.9,2825.8,13.53882086]
[1749651745511,0.04,2825.9,2825.8,18.9152929]
[1749651745722,0.1768,2826.6,2826.4,3.53796553]
[1749651745898,0.2168,2826.9,2826.5,7.57583292]
[1749651746101,0.2168,2826.9,2826.5,4.038]
[1749651746326,0.2168,2826.9,2826.6,3.53770995]
[1749651746544,0.2168,2826.9,2826.7,4.037]
[1749651746722,0.2168,2826.9,2826.8,3.53756898]
[1749651746723,0.04,2826.9,2826.8,3.53756898]
[1749651747238,0.04,2826.9,2826.7,0.1768]
[1749651747424,0.04,2826.9,2826.8,4.035]
[1749651748214,0.04,2826.9,2826.6,0.1768]
[1749651748415,0.8198,2826.8,2825.6,2.0467]
[1749651748604,0.8198,2826.8,2825.8,7.57271376]
[1749651748799,0.8198,2826.8,2825.8,4.034]
[1749651749006,0.04,2826.9,2826.6,3.53779693]
[1749651749265,0.04,2826.9,2826.8,3.53756898]
[1749651749447,0.04,2826.9,2826.8,7.57256898]
[1749651750011,0.04,2826.9,2826.8,18.76154504]
[1749651750224,0.04,2826.9,2826.8,19.98554504]
[1749651750424,0.04,2826.9,2826.8,10.0]
[1749651750644,0.04,2826.9,2826.8,18.79756898]
[1749651751460,0.04,2826.9,2826.8,41.70230598]
[1749651751666,0.04,2826.9,2826.8,19.62156898]
[1749651752162,0.04,2826.9,2826.8,41.09809998]
[1749651752455,0.04,2826.9,2826.8,24.38229311]
[1749651752758,0.04,2826.9,2826.8,21.90076411]
[1749651753059,0.04,2826.9,2826.8,40.26474211]
[1749651753261,0.04,2826.9,2826.8,32.92208911]
[1749651753434,0.04,2826.9,2826.8,27.80992011]
[1749651753640,37.45578244,2828.2,2827.5,10.0]
[1749651753825,37.45578244,2828.2,2827.7,10.0]
[1749651754028,0.7747,2828.1,2827.3,0.43697217]
[1749651754229,0.7747,2828.1,2826.4,0.8016]
[1749651754425,0.8197,2827.9,2826.4,4.33964422]
[1749651754758,0.8197,2827.9,2826.5,11.98616635]
[1749651755229,37.45578244,2828.2,2827.9,0.7843]
[1749651755429,37.45578244,2828.2,2827.9,11.23127567]
[1749651755628,37.45578244,2828.2,2828.0,4.048]
[1749651755842,37.45578244,2828.2,2827.9,4.49497567]
[1749651756527,37.45578244,2828.2,2828.1,3.53594285]
[1749651756723,37.45578244,2828.2,2828.1,13.53594285]
[1749651756928,37.45578244,2828.2,2828.1,14.31534285]
[1749651757277,35.01321064,2828.2,2828.1,30.2090112]
[1749651757443,35.01321064,2828.2,2828.1,14.8214]
[1749651757787,28.57779454,2828.2,2828.1,53.1749019]
[1749651757945,0.7723,2830.2,2828.9,0.7634]
[1749651758158,0.7723,2830.2,2829.0,4.055]
[1749651758360,0.176,2829.6,2829.1,0.176]
[1749651758578,0.7698,2829.5,2829.1,0.176]
[1749651758744,1.329538,2830.0,2829.0,10.0]
[1749651759074,9.28921402,2829.9,2829.4,0.176]
[1749651759664,9.11321402,2829.9,2829.4,0.176]
[1749651760603,9.11321402,2829.9,2829.1,3.53469287]
[1749651760764,9.11321402,2829.9,2829.0,10.0]
[1749651760966,9.11321402,2829.9,2829.3,3.53433975]
[1749651761157,1.0442752,2829.8,2829.3,3.53433975]
[1749651761486,8.16387293,2829.9,2829.2,10.0]
[1749651761827,8.16387293,2829.9,2829.0,3.53481795]
[1749651762188,8.16387293,2829.9,2828.9,0.44574238]
[1749651762560,8.16387293,2829.9,2829.0,3.53478706]
[1749651762765,8.16387293,2829.9,2828.9,0.44574238]
[1749651762957,0.94934109,2829.8,2828.9,3.98064971]
[1749651763269,0.94934109,2829.8,2828.9,0.44574238]
[1749651763469,0.55,2829.7,2828.9,0.44574238]
[1749651763697,0.7698,2829.6,2828.4,3.53549024]
[1749651763904,0.53878,2829.5,2828.2,4.8606]
[1749651764199,0.53878,2829.5,2828.5,3.53535228]
[1749651764501,0.7698,2829.6,2828.5,3.53535228]
[1749651764654,0.55,2829.7,2828.3,4.068]
[1749651764849,0.7561,2829.7,2828.5,3.53532062]
[1749651765151,0.7561,2829.7,2828.5,10.0]
[1749651765636,0.7561,2829.7,2828.5,13.53540916]
[1749651765806,0.7561,2829.7,2828.5,10.0]
[1749651766187,0.7514,2829.5,2828.4,10.0]
[1749651766387,0.7514,2829.5,2828.2,7.59880876]
[1749651766590,0.55,2829.4,2827.9,1.97901163]
[1749651766840,4.613,2829.6,2827.9,1.97901163]
[1749651766841,0.7635,2829.3,2828.0,4.25990116]
[1749651766994,0.7635,2829.3,2828.2,3.53571084]
[1749651767185,0.7635,2829.3,2828.3,10.0]
[1749651767386,0.7635,2829.3,2828.3,13.53569281]
[1749651767695,0.7635,2829.3,2828.2,10.0]
[1749651768001,0.7635,2829.3,2828.6,3.53522576]
[1749651768206,0.7635,2829.3,2828.6,3.53530816]
[1749651768424,0.7635,2829.3,2828.3,5.3310143]
[1749651768625,0.7635,2829.3,2828.5,3.5353726]
[1749651768836,0.7635,2829.3,2828.1,13.5359108]
[1749651768981,0.7635,2829.3,2828.6,3.53529025]
[1749651769180,0.7635,2829.3,2828.1,3.53585784]
[1749651769416,0.7635,2829.3,2828.2,10.0]
[1749651769616,0.176,2829.1,2828.6,0.176]
[1749651770118,0.7635,2829.3,2828.6,0.176]
[1749651770912,0.55,2829.0,2828.6,0.176]
[1749651771080,0.55,2828.7,2827.6,1.65765178]
[1749651771285,0.7813,2828.6,2827.6,1.65765178]
[1749651771634,0.7813,2828.6,2827.7,3.53637401]
[1749651771875,0.7813,2828.6,2827.7,0.87306893]
[1749651771986,0.7813,2828.6,2827.8,3.53620045]
[1749651772286,0.7813,2828.6,2827.9,0.29519523]
[1749651772480,0.7813,2828.6,2827.9,3.83126675]
[1749651772678,0.7813,2828.6,2828.1,10.0]
[1749651772884,0.7813,2828.6,2827.9,0.29519523]
[1749651773086,0.7813,2828.6,2828.0,3.5360607]
[1749651773280,0.7813,2828.6,2827.9,13.83132909]
[1749651773579,0.7813,2828.6,2828.0,3.53600216]
[1749651773812,0.7762,2829.2,2828.2,10.0]
[1749651773992,0.7762,2829.2,2828.2,15.70663976]
[1749651774201,0.7762,2829.2,2828.6,13.53525115]
[1749651774391,0.7762,2829.2,2828.6,3.53524236]
[1749651774594,0.7847,2829.7,2828.6,0.35352424]
[1749651774819,0.7847,2829.7,2828.9,10.0]
[1749651774998,0.7847,2829.7,2828.9,13.53486608]
[1749651775984,0.7847,2829.7,2829.0,3.53479203]
[1749651776185,0.7847,2829.7,2828.9,10.0]
[1749651776386,0.7847,2829.7,2828.9,13.53485557]
[1749651776700,0.7847,2829.7,2828.7,0.8259]
[1749651776919,0.7847,2829.7,2828.7,10.0]
[1749651777118,0.7847,2829.7,2828.4,4.046]
[1749651777327,0.83978441,2829.6,2828.7,3.53512813]
[1749651777649,0.55,2829.6,2828.6,10.0]
[1749651777847,0.7765,2829.5,2828.3,0.35624531]
[1749651778141,0.7765,2829.5,2828.5,3.53540961]
[1749651778751,0.7765,2829.5,2828.5,5.24251518]
[1749651779050,0.7765,2829.5,2828.2,7.95416635]
[1749651779051,0.7765,2829.5,2828.8,3.53500825]
[1749651779250,0.7765,2829.5,2828.5,0.7862]
[1749651779564,0.7765,2829.5,2829.1,3.53463418]
[1749651779709,0.7765,2829.5,2829.1,3.53459842]
[1749651780055,0.8073,2829.8,2829.1,0.7069405]
[1749651780244,0.9833,2829.8,2829.3,0.176]
[1749651780447,0.8073,2829.8,2829.3,0.176]
[1749651780640,0.8073,2829.8,2829.2,10.0]
[1749651780946,0.8073,2829.8,2829.5,3.71011363]
[1749651781157,8.16387293,2829.9,2829.5,0.176]
[1749651781339,0.34523287,2831.1,2829.9,40.0]
[1749651781539,0.34523287,2831.1,2830.9,13.53244551]
[1749651781743,0.34523287,2831.1,2830.9,10.0]
[1749651782156,26.411207,2831.6,2830.9,13.53244551]
[1749651783340,0.8227,2831.2,2830.3,0.8049]
[1749651783528,0.8227,2831.2,2829.8,6.0689]
[1749651783868,0.8227,2831.2,2830.1,10.0]
[1749651784072,0.8054,2830.9,2829.3,0.8229]
[1749651784374,0.8054,2830.9,2829.2,10.0]
[1749651784375,0.8054,2830.4,2828.7,0.8229]
[1749651784587,0.8054,2830.4,2829.3,7.95416635]
[1749651784734,0.55,2830.3,2829.1,0.04]
[1749651784938,0.8054,2830.2,2829.1,0.04]
[1749651785193,0.8054,2830.2,2829.2,6.797912]
[1749651785337,0.7804,2830.9,2829.6,10.0]
[1749651785540,0.55,2830.8,2829.7,0.29500745]
[1749651785754,0.7804,2830.9,2830.0,3.53348928]
[1749651786079,0.7804,2830.9,2829.9,10.0]
[1749651786247,0.18652095,2831.0,2830.0,0.70673079]
[1749651786445,0.18652095,2831.0,2829.9,0.825]
[1749651786651,0.7566,2830.9,2830.0,13.53347302]
[1749651786989,0.7566,2830.9,2830.0,10.0]
[1749651787487,0.7566,2830.9,2830.4,3.532982]
[1749651787701,0.7566,2830.9,2830.2,10.0]
[1749651787863,0.7566,2830.9,2830.4,3.53296528]
[1749651788201,0.7566,2830.9,2830.5,3.53286714]
[1749651788492,0.7566,2830.9,2829.9,4.071]
[1749651788790,0.7924,2830.9,2829.6,4.36725676]
[1749651789088,0.7924,2830.9,2829.7,5.287]
[1749651789251,0.7924,2830.9,2829.8,10.0]
[1749651789461,0.8082,2830.5,2829.1,0.04]
[1749651789674,0.55,2830.2,2829.1,0.04]
[1749651789998,0.8082,2830.1,2829.1,0.04]
[1749651790203,0.8082,2829.9,2829.1,0.04]
[1749651790414,0.8082,2829.9,2829.3,3.53438007]
[1749651790570,0.8082,2829.9,2829.1,0.04]
[1749651790769,0.7836,2830.4,2829.4,7.95416635]
[1749651790992,0.7836,2830.4,2829.9,3.53368293]
[1749651791201,0.7836,2830.9,2830.0,3.5335689]
[1749651791369,0.176,2830.8,2830.3,0.176]
[1749651791765,0.7836,2830.9,2829.9,0.35336829]
[1749651792025,0.176,2830.5,2830.0,0.176]
[1749651793149,0.176,2830.5,2830.0,3.70954412]
[1749651793311,0.176,2830.5,2830.0,0.176]
[1749651793493,0.176,2830.5,2830.0,3.70949126]
[1749651793824,0.7836,2830.9,2830.4,3.70899851]
[1749651794031,0.7836,2830.9,2830.5,3.53294425]
[1749651794232,0.7836,2830.9,2830.4,0.176]
[1749651794529,0.7836,2830.9,2830.7,0.176]
[1749651795328,0.7836,2830.9,2830.5,0.176]
[1749651796433,0.176,2830.9,2830.6,3.532755]
[1749651796617,0.18652095,2831.0,2830.3,13.53309094]
[1749651796795,0.18652095,2831.0,2830.7,0.176]
[1749651796994,0.8049,2830.5,2829.1,3.57466353]
[1749651797326,0.8049,2830.5,2829.5,0.7602]
[1749651797520,0.8049,2830.5,2829.6,3.53394814]
[1749651797695,0.8049,2830.5,2829.5,14.29436443]
[1749651797903,0.8049,2830.5,2829.5,10.0]
[1749651798133,0.8049,2830.5,2829.6,3.53400172]
[1749651798338,0.8049,2830.5,2829.7,3.53393697]
[1749651798516,0.8049,2830.5,2829.7,0.70681041]
[1749651798715,0.8049,2830.5,2829.4,3.53431128]
[1749651798921,0.8033,2830.3,2829.2,5.39060716]
[1749651799118,0.8033,2830.3,2829.4,3.53423735]
[1749651799323,0.55,2830.7,2829.7,3.53382518]
[1749651799528,0.7872,2830.8,2829.8,0.8322]
[1749651799698,0.7872,2830.8,2830.1,3.53341842]
[1749651799898,0.7872,2830.8,2829.9,3.5336754]
[1749651800131,0.7872,2830.8,2829.9,0.35336754]
[1749651800453,0.7872,2830.8,2830.1,0.8105]
[1749651800653,0.00214065,2830.5,2830.4,3.53296647]
[1749651800800,0.00214065,2830.5,2830.1,0.8105]
[1749651801000,0.00214065,2830.5,2830.3,3.53308516]
[1749651801313,0.00214065,2830.5,2830.3,3.53312991]
[1749651801513,0.00214065,2830.5,2830.2,3.53327617]
[1749651802507,0.00214065,2830.5,2829.8,10.8147]
[1749651802756,0.8001,2830.4,2829.2,1.56098299]
[1749651802909,0.8001,2830.4,2829.2,13.53455485]
[1749651803247,0.8001,2830.4,2829.4,3.53424878]
[1749651803413,0.8001,2830.4,2829.5,3.53416149]
[1749651803604,0.8001,2830.4,2829.4,3.53429435]
[1749651803821,0.8001,2830.4,2829.5,3.53413017]
[1749651804030,0.8001,2830.4,2829.5,0.70684245]
[1749651804306,0.8001,2830.4,2829.9,3.53356939]
[1749651804509,0.8001,2830.4,2830.0,3.53348514]
[1749651804707,0.8001,2830.4,2829.9,3.53369377]
[1749651805032,0.00214065,2830.5,2829.8,10.0]
[1749651805345,0.00214065,2830.5,2830.1,3.53336788]
[1749651805646,0.00214065,2830.5,2830.1,3.53339215]
[1749651805944,0.00214065,2830.5,2830.0,3.53352475]
[1749651806170,0.00214065,2830.5,2830.1,3.53342891]
[1749651806315,0.00214065,2830.5,2829.9,3.533629]
[1749651806508,0.00214065,2830.5,2830.0,3.53350674]
[1749651806735,0.00214065,2830.5,2830.0,3.53355815]
[1749651806935,0.00214065,2830.5,2830.3,0.176]
[1749651807256,0.00214065,2830.5,2830.0,3.53349888]
[1749651807257,0.00214065,2830.5,2829.7,3.53392406]
[1749651807425,0.17814065,2830.5,2830.0,0.176]
[1749651807820,0.7799,2830.4,2830.0,0.176]
[1749651808335,0.9559,2830.4,2829.9,0.176]
[1749651809044,0.9559,2830.4,2829.0,7.95416635]
[1749651809045,0.7799,2830.4,2828.9,1.12144015]
[1749651809246,0.176,2829.8,2829.3,0.176]
[1749651809445,0.763,2829.7,2829.3,0.176]
[1749651810313,0.763,2829.7,2829.3,0.55105067]
[1749651810547,0.7881,2830.0,2829.6,0.176]
[1749651810768,0.7881,2830.0,2829.1,0.04]
[1749651810951,0.9641,2830.0,2829.5,0.176]
[1749651812424,0.9641,2830.0,2829.5,3.71010691]
[1749651812753,0.7881,2830.0,2829.2,4.30081278]
[1749651812953,0.7881,2830.0,2829.8,0.176]
[1749651815549,0.176,2830.3,2829.3,0.43408128]
[1749651815550,0.8112,2830.3,2829.6,3.53403915]
[1749651815870,0.8112,2830.3,2829.3,0.43408128]
[1749651816042,0.9872,2830.3,2829.8,0.176]
[1749651816249,0.8112,2830.3,2829.7,3.53385689]
[1749651816562,0.9872,2830.3,2829.8,0.176]
[1749651817567,0.9872,2830.3,2829.8,3.70973922]
[1749651817775,0.9872,2830.3,2829.8,4.25810184]
[1749651817776,0.8112,2830.3,2829.8,4.25810184]
[1749651817979,0.8112,2830.3,2830.0,0.176]
[1749651818247,0.00214065,2830.5,2830.4,3.53306953]
[1749651818487,0.18652095,2831.0,2830.9,3.53244551]
[1749651818958,0.18652095,2831.0,2830.9,0.176]
[1749651819357,0.18652095,2831.0,2830.9,3.70844551]
[1749651819672,0.18652095,2831.0,2830.9,4.43254426]
[1749651820385,0.18652095,2831.0,2830.9,0.90009875]
[1749651820544,0.18652095,2831.0,2830.9,3.70844551]
[1749651820991,0.18652095,2831.0,2830.9,10.176]
[1749651821282,0.01717478,2831.0,2830.9,10.176]
[1749651821445,0.01717478,2831.0,2830.9,13.70844551]
[1749651822784,25.603907,2831.6,2831.0,13.53225153]
[1749651822971,25.603907,2831.6,2831.3,3.5318692]
[1749651823172,25.603907,2831.6,2831.4,0.176]
[1749651823691,25.603907,2831.6,2831.4,3.70779947]
[1749651823891,25.603907,2831.6,2831.4,0.176]
[1749651824349,25.603907,2831.6,2831.5,0.176]
[1749651824689,25.603907,2831.6,2831.5,4.47809698]
[1749651824860,25.603907,2831.6,2831.5,19.3717721]
[1749651825578,0.005,2832.0,2831.8,3.53132283]
[1749651825888,0.005,2832.0,2831.9,30.49124713]
[1749651826092,0.005,2832.0,2831.9,31.72255682]
[1749651826251,0.04,2832.9,2832.5,10.0]
[1749651826584,4.88957988,2833.4,2833.2,0.7548]
[1749651826786,4.84660241,2833.4,2833.3,28.73553645]
[1749651826985,4.84660241,2833.4,2833.3,10.7548]
[1749651827147,4.84660241,2833.4,2833.3,14.28425328]
[1749651827348,0.17210927,2833.4,2833.3,27.50541963]
[1749651827686,0.17210927,2833.4,2833.3,10.7548]
[1749651828193,0.17210927,2833.4,2833.3,10.0]
[1749651828390,0.17210927,2833.4,2833.3,13.52945328]
[1749651828548,0.17210927,2833.4,2833.3,10.0]
[1749651828959,0.17210927,2833.4,2833.3,14.095]
[1749651829160,0.17210927,2833.4,2833.3,13.52945328]
[1749651829370,0.17210927,2833.4,2833.3,10.0]
[1749651829569,0.17210927,2833.4,2833.3,17.62445328]
[1749651829776,0.17210927,2833.4,2833.3,10.0]
[1749651830392,0.17210927,2833.4,2833.0,3.52973385]
[1749651830555,0.17210927,2833.4,2832.9,13.52994264]
[1749651830890,0.17210927,2833.4,2833.3,13.51515515]
[1749651831088,0.17210927,2833.4,2833.3,22.2596215]
[1749651831385,34.59672406,2835.0,2833.3,36.2789308]